bitfinex/quotes_BTCUSD_20240715
["timestamp","ask_amount","ask_price","bid_price","bid_amount"]
[1721030427755,0.02325245,62979.0,62978.0,0.00047344]
[1721030427959,0.18536947,62979.0,62978.0,0.00047344]
[1721030428544,0.16211791,62979.0,62978.0,0.00615838]
[1721030429089,0.00084,62984.0,62979.0,0.00047344]
[1721030429243,0.23736554,62983.0,62979.0,0.00047344]
[1721030429445,0.02325258,62982.0,62980.0,0.00568156]
[1721030429642,0.16211791,62981.0,62980.0,0.00568156]
[1721030429865,0.18537049,62981.0,62980.0,0.00568156]
[1721030430695,0.23429933,62981.0,62978.0,0.00047344]
[1721030430933,0.0664,62979.0,62971.0,0.00047344]
[1721030431101,0.23429976,62978.0,62976.0,0.00047344]
[1721030431465,0.02324843,62977.0,62972.0,0.00047344]
[1721030431656,0.18536634,62977.0,62976.0,0.00047344]
[1721030432017,0.18536634,62977.0,62973.0,0.00047344]
[1721030432230,0.18536634,62977.0,62964.0,0.1]
[1721030432231,0.08,62975.0,62966.0,0.00047344]
[1721030432437,0.18536634,62974.0,62966.0,0.00047344]
[1721030432674,0.02324843,62973.0,62971.0,0.00047344]
[1721030432909,0.16211791,62972.0,62971.0,0.00047344]
[1721030433144,0.18536634,62972.0,62971.0,0.00047344]
[1721030433750,0.16211791,62972.0,62971.0,0.00047344]
[1721030433969,0.1852676,62972.0,62971.0,0.00047344]
[1721030434145,0.1852676,62972.0,62971.0,0.00147344]
[1721030434346,0.1852676,62972.0,62971.0,0.00047344]
[1721030435037,0.1852676,62972.0,62971.0,0.00547344]
[1721030435444,0.1852676,62972.0,62971.0,0.11755866]
[1721030435649,0.1852676,62972.0,62971.0,0.00547344]
[1721030436447,0.16211791,62972.0,62971.0,0.00547344]
[1721030436656,0.18540458,62972.0,62971.0,0.00547344]
[1721030437057,0.2112897,62972.0,62971.0,0.00547344]
[1721030437207,0.18540454,62972.0,62971.0,0.00547344]
[1721030437585,0.18539929,62972.0,62971.0,0.00547344]
[1721030437792,0.07235861,62972.0,62971.0,0.00547344]
[1721030438224,0.02328138,62972.0,62971.0,0.00547344]
[1721030438451,0.02330132,62977.0,62972.0,0.00047344]
[1721030438662,0.21138279,62976.0,62972.0,0.00047344]
[1721030438811,0.07256616,62975.0,62972.0,0.00047344]
[1721030439007,0.23468407,62974.0,62972.0,0.00047344]
[1721030439249,0.07256616,62973.0,62972.0,0.00047344]
[1721030439451,0.23468407,62973.0,62972.0,0.00047344]
[1721030439651,0.23468407,62973.0,62971.0,0.00247344]
[1721030439871,0.04926488,62972.0,62971.0,0.002]
[1721030440202,0.0751,62972.0,62971.0,0.002]
[1721030440378,0.30941127,62972.0,62971.0,0.002]
[1721030440580,0.30941127,62972.0,62967.0,0.11255866]
[1721030440718,0.07219336,62971.0,62970.0,0.00047344]
[1721030441127,0.07219336,62971.0,62967.0,0.11255866]
[1721030441340,0.29831127,62970.0,62963.0,0.00138644]
[1721030441598,0.29831127,62970.0,62963.0,0.11347166]
[1721030441599,0.07219336,62969.0,62963.0,0.11347166]
[1721030441755,0.22611791,62970.0,62963.0,0.11347166]
[1721030441756,0.23431127,62968.0,62963.0,0.11347166]
[1721030441958,0.02329584,62967.0,62963.0,0.11347166]
[1721030442155,0.21097369,62966.0,62963.0,0.11347166]
[1721030442397,0.07249742,62965.0,62963.0,0.00138644]
[1721030442599,0.18541375,62964.0,62963.0,0.11847166]
[1721030442860,0.18541375,62964.0,62963.0,0.00638644]
[1721030443064,0.23461624,62964.0,62963.0,0.00638644]
[1721030443499,0.18545045,62964.0,62963.0,0.00638644]
[1721030443709,0.23493749,62964.0,62963.0,0.11847166]
[1721030443902,0.23593749,62964.0,62963.0,0.13147166]
[1721030444062,0.23593749,62964.0,62963.0,0.12647166]
[1721030444440,0.23593749,62964.0,62963.0,0.13647166]
[1721030444836,0.23593749,62964.0,62963.0,0.12647166]
[1721030445423,0.23593749,62964.0,62963.0,0.13947166]
[1721030445755,0.07381958,62964.0,62963.0,0.13947166]
[1721030446157,0.02433254,62964.0,62963.0,0.13947166]
[1721030446749,0.02429259,62964.0,62963.0,0.13947166]
[1721030447148,0.0242926,62964.0,62963.0,0.13947166]
[1721030449350,0.07337652,62964.0,62963.0,0.13947166]
[1721030449723,0.0242926,62964.0,62963.0,0.13947166]
[1721030449923,0.02428184,62964.0,62963.0,0.13947166]
[1721030451326,0.07331413,62964.0,62963.0,0.13947166]
[1721030453348,0.07332944,62964.0,62963.0,0.13947166]
[1721030455167,0.07332944,62964.0,62963.0,0.20157166]
[1721030455168,0.02427073,62964.0,62963.0,0.20157166]
[1721030455370,0.02427073,62964.0,62963.0,0.28307166]
[1721030456409,0.001,62964.0,62963.0,0.28307166]
[1721030457143,0.05059434,62964.0,62963.0,0.28307166]
[1721030457347,0.07392859,62964.0,62963.0,0.28307166]
[1721030457978,0.02433425,62964.0,62963.0,0.28307166]
[1721030458182,0.07374236,62964.0,62963.0,0.28307166]
[1721030459504,0.07372283,62964.0,62963.0,0.28307166]
[1721030459703,0.07358433,62964.0,62963.0,0.28307166]
[1721030460263,0.07358433,62964.0,62963.0,0.34307166]
[1721030460486,0.02429574,62964.0,62963.0,0.34307166]
[1721030462187,0.02436239,62964.0,62963.0,0.34307166]
[1721030462395,0.02436239,62964.0,62963.0,0.28307166]
[1721030462815,0.07403922,62964.0,62963.0,0.13947166]
[1721030463000,0.07403922,62964.0,62963.0,0.02738644]
[1721030463204,0.15123922,62964.0,62963.0,0.026913]
[1721030463537,0.45721365,62964.0,62963.0,0.026913]
[1721030463727,0.50473217,62964.0,62963.0,0.026913]
[1721030463929,0.85686581,62964.0,62963.0,0.026913]
[1721030464131,1.37099159,62964.0,62963.0,0.013913]
[1721030464381,1.48875042,62964.0,62963.0,0.000913]
[1721030464552,1.66086859,62964.0,62963.0,0.000913]
[1721030465025,1.66086859,62964.0,62963.0,5e-08]
[1721030465197,1.66086859,62964.0,62963.0,0.00100005]
[1721030465433,1.66086859,62964.0,62963.0,0.00200005]
[1721030465434,1.08857364,62964.0,62963.0,0.00200005]
[1721030465605,0.78769664,62964.0,62963.0,0.00100005]
[1721030465812,0.6506169,62964.0,62963.0,0.00100005]
[1721030466151,1.17300458,62964.0,62963.0,0.00100005]
[1721030466351,1.07347802,62964.0,62963.0,0.00100005]
[1721030466523,1.29169729,62964.0,62963.0,0.00100005]
[1721030466944,1.19117073,62964.0,62963.0,5e-08]
[1721030467148,0.79960102,62964.0,62963.0,0.00100005]
[1721030467360,0.80260102,62964.0,62963.0,0.00200005]
[1721030467734,0.89755674,62964.0,62963.0,0.00200005]
[1721030468498,0.57367105,62964.0,62963.0,0.00200005]
[1721030468699,0.57367048,62964.0,62963.0,0.00200005]
[1721030469421,0.62114988,62964.0,62963.0,0.00200005]
[1721030469621,0.57367048,62964.0,62963.0,0.00200005]
[1721030470477,0.54990952,62964.0,62963.0,0.00200005]
[1721030470637,0.57338689,62964.0,62963.0,0.00200005]
[1721030473642,0.5226518,62964.0,62963.0,0.00200005]
[1721030473842,0.49917443,62964.0,62963.0,0.00200005]
[1721030474701,0.522634,62964.0,62963.0,0.00200005]
[1721030478337,0.64134764,62964.0,62963.0,0.00200005]
[1721030479048,0.522614,62964.0,62963.0,0.00200005]
[1721030480534,0.519614,62964.0,62963.0,0.00100005]
[1721030480796,0.458114,62964.0,62963.0,0.00100005]
[1721030481076,0.458114,62964.0,62963.0,0.00200005]
[1721030481077,0.382914,62964.0,62963.0,0.00200005]
[1721030481435,0.380914,62964.0,62963.0,0.00100005]
[1721030481941,0.369914,62964.0,62963.0,0.00100005]
[1721030482192,0.525814,62964.0,62963.0,0.00200005]
[1721030482358,0.513814,62964.0,62963.0,0.00100005]
[1721030482788,0.49737443,62964.0,62963.0,0.00200005]
[1721030482954,0.52080548,62964.0,62963.0,0.00100005]
[1721030483312,0.6404681,62964.0,62963.0,5e-08]
[1721030483729,0.64553163,62964.0,62963.0,5e-08]
[1721030484128,0.64353163,62964.0,62963.0,5e-08]
[1721030484289,0.6404681,62964.0,62963.0,5e-08]
[1721030484484,0.65753163,62964.0,62963.0,0.00100005]
[1721030484692,0.66228437,62964.0,62963.0,5e-08]
[1721030484893,0.56727342,62964.0,62963.0,5e-08]
[1721030485098,0.57427342,62964.0,62963.0,0.001]
[1721030485538,0.64552718,62964.0,62963.0,0.001]
[1721030485767,0.64563011,62964.0,62963.0,0.001]
[1721030485896,0.58443011,62964.0,62963.0,0.001]
[1721030486101,0.50741297,62964.0,62963.0,0.001]
[1721030486297,0.58165316,62964.0,62963.0,0.001]
[1721030486497,0.60539935,62964.0,62963.0,0.001]
[1721030486716,0.60846288,62964.0,62963.0,0.001]
[1721030486896,0.60539935,62964.0,62963.0,0.001]
[1721030487098,0.67436288,62964.0,62963.0,0.001]
[1721030487295,0.56547503,62964.0,62963.0,0.001]
[1721030487574,0.68114241,62964.0,62963.0,0.001]
[1721030487754,0.5624115,62964.0,62963.0,0.001]
[1721030487957,0.66044783,62964.0,62963.0,0.001]
[1721030488274,0.56547351,62964.0,62963.0,0.001]
[1721030488430,0.66043914,62964.0,62963.0,0.001]
[1721030488837,0.56547351,62964.0,62963.0,0.001]
[1721030489257,0.66030633,62964.0,62963.0,0.001]
[1721030489522,0.80246345,62964.0,62963.0,0.001]
[1721030489744,0.70750302,62964.0,62963.0,0.001]
[1721030490240,1.5603094,62964.0,62963.0,0.001]
[1721030490440,1.57619349,62964.0,62963.0,0.001]
[1721030490672,1.86207049,62964.0,62963.0,0.001]
[1721030490901,1.86207049,62964.0,62963.0,6e-08]
[1721030491394,0.14295,62959.0,62953.0,0.000913]
[1721030491605,0.36845246,62958.0,62953.0,0.000913]
[1721030491855,0.15581583,62957.0,62953.0,0.000913]
[1721030492153,0.31793374,62956.0,62953.0,0.000913]
[1721030492391,0.15581583,62955.0,62953.0,0.000913]
[1721030492624,0.05051872,62957.0,62953.0,0.000913]
[1721030492625,0.2363581,62954.0,62953.0,0.000913]
[1721030492873,0.31839147,62954.0,62953.0,0.001913]
[1721030493384,0.23636494,62954.0,62953.0,0.15058471]
[1721030494338,0.07424703,62954.0,62953.0,0.14958471]
[1721030494592,0.07524703,62954.0,62953.0,0.14958471]
[1721030495104,0.07524703,62954.0,62953.0,0.15716287]
[1721030495335,0.07524703,62954.0,62953.0,0.06869116]
[1721030495566,0.07724703,62954.0,62953.0,0.09696287]
[1721030495799,0.26863396,62954.0,62953.0,0.00849116]
[1721030496028,0.26863396,62954.0,62953.0,0.01049116]
[1721030496029,0.23637187,62954.0,62953.0,0.01049116]
[1721030496258,0.23637187,62954.0,62953.0,0.01149116]
[1721030496740,0.23637187,62954.0,62953.0,0.01049116]
[1721030496965,0.23737187,62954.0,62953.0,0.01049116]
[1721030501272,0.39972078,62954.0,62953.0,0.000913]
[1721030502490,0.34896117,62954.0,62953.0,0.000913]
[1721030502698,0.39998607,62954.0,62953.0,0.000913]
[1721030502947,0.39998715,62954.0,62953.0,0.00849138]
[1721030503170,0.39998715,62954.0,62953.0,0.000913]
[1721030504111,0.69388715,62954.0,62953.0,0.000913]
[1721030504573,0.7413622,62954.0,62953.0,0.000913]
[1721030504823,0.99426452,62954.0,62953.0,0.000913]
[1721030505315,0.92305195,62954.0,62953.0,0.000913]
[1721030505543,0.92307018,62954.0,62953.0,0.000913]
[1721030505795,0.92007018,62954.0,62953.0,0.000913]
[1721030506004,0.92207018,62954.0,62953.0,0.000913]
[1721030506232,0.92407018,62954.0,62953.0,0.000913]
[1721030506711,0.99528972,62954.0,62953.0,0.000913]
[1721030506958,1.01903055,62954.0,62953.0,0.000913]
[1721030507199,0.92407018,62954.0,62953.0,0.000913]
[1721030507401,1.01903055,62954.0,62953.0,0.000913]
[1721030507729,0.92407018,62954.0,62953.0,0.000913]
[1721030507930,1.24277065,62954.0,62953.0,0.000913]
[1721030508160,1.04277065,62954.0,62953.0,0.000913]
[1721030508382,0.90067065,62954.0,62953.0,0.000913]
[1721030508518,0.78197018,62954.0,62953.0,0.000913]
[1721030508718,0.79243534,62954.0,62953.0,0.000913]
[1721030508920,1.36428134,62954.0,62953.0,0.000913]
[1721030509142,1.56428134,62954.0,62953.0,0.000913]
[1721030509363,1.80681116,62954.0,62953.0,0.000913]
[1721030509563,1.80681116,62954.0,62953.0,5e-08]
[1721030509564,1.66428134,62954.0,62953.0,5e-08]
[1721030509920,1.66228134,62954.0,62953.0,5e-08]
[1721030510146,1.66928134,62954.0,62953.0,0.00100005]
[1721030510370,1.81176144,62954.0,62953.0,0.00100005]
[1721030511316,1.66928134,62954.0,62953.0,0.00100005]
[1721030511566,1.66728134,62954.0,62953.0,0.00100005]
[1721030511904,1.10505834,62954.0,62953.0,0.00200005]
[1721030512112,0.61469648,62954.0,62953.0,0.00200005]
[1721030512310,0.53639648,62954.0,62953.0,0.00200005]
[1721030512509,0.62845512,62954.0,62953.0,0.00100005]
[1721030512713,0.63845512,62954.0,62953.0,0.00200005]
[1721030512914,0.63845512,62954.0,62953.0,0.01025991]
[1721030513241,0.54349268,62954.0,62953.0,0.00200005]
[1721030513435,0.53349268,62954.0,62953.0,0.00100005]
[1721030513839,0.54149268,62954.0,62953.0,0.00200005]
[1721030514257,0.54615512,62954.0,62953.0,0.00200005]
[1721030514415,0.54596397,62954.0,62953.0,0.00200005]
[1721030514616,0.43700153,62954.0,62953.0,0.00100005]
[1721030515015,0.54096397,62954.0,62953.0,0.00200005]
[1721030515226,0.44637215,62954.0,62953.0,0.00200005]
[1721030515432,0.44635338,62954.0,62953.0,0.08947176]
[1721030515652,0.34535351,62954.0,62953.0,0.00100005]
[1721030516053,0.34535351,62954.0,62953.0,0.00200005]
[1721030516054,0.35235351,62954.0,62953.0,0.00200005]
[1721030517128,0.48727603,62954.0,62953.0,0.00200005]
[1721030517258,0.5685746,62954.0,62953.0,0.00200005]
[1721030517458,0.4235746,62954.0,62953.0,0.00200005]
[1721030517678,0.35235351,62954.0,62953.0,0.00200005]
[1721030517881,0.4235746,62954.0,62953.0,0.00200005]
[1721030518084,0.4235746,62954.0,62950.0,0.06991276]
[1721030518314,0.20751963,62953.0,62950.0,0.06991276]
[1721030518509,0.36698242,62952.0,62950.0,0.00881276]
[1721030518709,0.16044731,62951.0,62950.0,0.00881276]
[1721030519100,0.15738378,62951.0,62950.0,0.00881276]
[1721030519310,0.15738378,62951.0,62950.0,0.09728447]
[1721030519512,0.31950169,62951.0,62950.0,0.00981276]
[1721030519717,0.31950169,62951.0,62950.0,0.00881276]
[1721030520114,0.32250169,62951.0,62950.0,0.00981276]
[1721030520520,0.32250169,62951.0,62950.0,0.00881276]
[1721030520926,0.27373607,62951.0,62950.0,0.00881276]
[1721030521123,0.32472447,62951.0,62950.0,0.00881276]
[1721030524203,0.32487662,62951.0,62950.0,0.00881276]
[1721030525684,0.32487662,62951.0,62950.0,0.09728447]
[1721030526104,0.32487662,62951.0,62950.0,0.17838447]
[1721030526539,0.0807098,62951.0,62950.0,0.50338447]
[1721030526744,0.006,62951.0,62950.0,0.50338447]
[1721030527359,0.006,62951.0,62950.0,0.44338447]
[1721030527766,0.003,62951.0,62950.0,0.44338447]
[1721030527937,0.02640081,62951.0,62950.0,0.44338447]
[1721030528165,0.02740081,62951.0,62950.0,0.45038447]
[1721030528381,0.02440081,62951.0,62950.0,0.42538447]
[1721030528585,0.02540081,62951.0,62950.0,0.49138447]
[1721030528938,0.02440081,62951.0,62950.0,0.48538447]
[1721030529262,0.002,62951.0,62950.0,0.49238447]
[1721030529505,0.002,62951.0,62950.0,0.48538447]
[1721030529877,0.003,62951.0,62950.0,0.49238447]
[1721030530127,0.001,62951.0,62950.0,0.48538447]
[1721030530318,0.002,62951.0,62950.0,0.49538447]
[1721030530960,0.001,62951.0,62950.0,0.48538447]
[1721030531161,0.001,62951.0,62950.0,0.49838447]
[1721030531363,0.002,62951.0,62950.0,0.49838447]
[1721030531983,0.003,62951.0,62950.0,0.50538447]
[1721030532190,0.003,62951.0,62950.0,0.94835447]
[1721030532396,0.003,62951.0,62950.0,1.65130384]
[1721030532601,0.001,62951.0,62950.0,3.8512199]
[1721030532836,0.002,62951.0,62950.0,4.39817652]
[1721030533035,0.002,62951.0,62950.0,4.11223552]
[1721030533238,0.010451,62954.0,62953.0,1.42847447]
[1721030533459,0.010451,62954.0,62953.0,1.46736538]
[1721030533669,0.010451,62954.0,62953.0,1.75329238]
[1721030535459,0.010451,62954.0,62953.0,1.95329238]
[1721030535891,0.010451,62954.0,62953.0,1.96729238]
[1721030536299,0.010451,62954.0,62953.0,1.95329238]
[1721030536500,0.010451,62954.0,62953.0,2.25321938]
[1721030536676,0.010451,62954.0,62953.0,1.96729238]
[1721030537126,0.010451,62954.0,62953.0,1.98129238]
[1721030537538,0.010451,62954.0,62953.0,1.96729238]
[1721030537714,0.00966197,62954.0,62953.0,1.96729238]
[1721030538129,0.00966197,62954.0,62953.0,1.98129238]
[1721030539980,0.00549561,62954.0,62953.0,1.98129238]
[1721030540937,0.00470821,62954.0,62953.0,1.98129238]
[1721030542151,0.00470821,62954.0,62953.0,1.64900791]
[1721030542629,0.00470821,62954.0,62953.0,1.98129238]
[1721030542861,0.00470821,62954.0,62953.0,4.70392214]
[1721030543063,0.00391918,62954.0,62953.0,3.55419876]
[1721030543960,0.00391918,62954.0,62953.0,3.47314638]
[1721030544607,0.00391918,62954.0,62953.0,3.45914638]
[1721030544791,0.00391918,62954.0,62953.0,3.47314638]
[1721030544965,0.00391918,62954.0,62953.0,3.69874638]
[1721030545944,0.00391918,62954.0,62953.0,3.41281938]
[1721030546402,0.00313015,62954.0,62953.0,3.41281938]
[1721030546554,0.00313015,62954.0,62953.0,1.96810238]
[1721030546755,0.00413015,62954.0,62953.0,1.98210238]
[1721030547458,0.00413015,62954.0,62953.0,2.12506538]
[1721030547666,0.00313015,62954.0,62953.0,3.36181938]
[1721030547864,0.00313015,62954.0,62953.0,3.37581938]
[1721030548159,0.00313015,62954.0,62953.0,4.56254276]
[1721030548405,0.00234112,62954.0,62953.0,4.56254276]
[1721030549580,0.00234112,62954.0,62953.0,4.53454276]
[1721030549781,0.12798685,62975.0,62962.0,0.56]
[1721030549986,0.12719782,62975.0,62974.0,0.07228447]
[1721030550286,0.15240034,62975.0,62974.0,0.07228447]
[1721030550491,0.07797562,62975.0,62974.0,0.07228447]
[1721030551322,0.07797562,62975.0,62974.0,0.07428447]
[1721030552528,0.07797562,62975.0,62974.0,0.002]
[1721030552795,0.07797562,62975.0,62974.0,0.07428447]
[1721030553424,0.07797562,62975.0,62974.0,0.002]
[1721030553671,0.07797562,62975.0,62974.0,0.07628447]
[1721030553875,0.10312987,62975.0,62974.0,0.07628447]
[1721030555888,0.10312987,62975.0,62974.0,0.004]
[1721030556097,0.10312987,62975.0,62974.0,0.07628447]
[1721030556317,0.07797562,62975.0,62974.0,0.07628447]
[1721030556544,0.10315588,62975.0,62974.0,0.07628447]
[1721030556748,0.32737455,62975.0,62974.0,0.004]
[1721030556952,0.380839,62975.0,62974.0,0.004913]
[1721030557580,0.21955109,62975.0,62974.0,0.000913]
[1721030557787,0.21955109,62975.0,62974.0,0.07319747]
[1721030557976,0.22455109,62975.0,62974.0,0.07319747]
[1721030558722,0.22555109,62975.0,62974.0,0.07319747]
[1721030559132,0.22555109,62975.0,62974.0,0.000913]
[1721030559328,0.21955109,62975.0,62974.0,0.000913]
[1721030559527,0.22532091,62975.0,62974.0,0.000913]
[1721030559744,0.22732091,62975.0,62974.0,0.000913]
[1721030559971,0.22832091,62975.0,62974.0,0.000913]
[1721030562594,0.19760985,62975.0,62974.0,0.000913]
[1721030562803,0.22833727,62975.0,62974.0,0.000913]
[1721030564804,0.22833727,62975.0,62974.0,0.07319747]
[1721030565244,0.30909431,62975.0,62974.0,0.07319747]
[1721030565450,0.30709431,62975.0,62974.0,0.07319747]
[1721030565678,0.30709431,62975.0,62974.0,0.07619747]
[1721030565894,0.30710814,62975.0,62974.0,0.07619747]
[1721030566326,0.30710814,62975.0,62974.0,0.07319747]
[1721030566539,0.30810814,62975.0,62974.0,0.07619747]
[1721030567214,0.24600814,62975.0,62974.0,0.07619747]
[1721030568846,0.24500814,62975.0,62974.0,0.07619747]
[1721030569255,0.16056266,62975.0,62974.0,0.07919747]
[1721030569451,0.24539517,62975.0,62974.0,0.07919747]
[1721030569671,0.19136408,62975.0,62974.0,0.07919747]
[1721030569806,0.2454382,62975.0,62974.0,0.07919747]
[1721030571530,0.16368116,62975.0,62974.0,0.07919747]
[1721030571773,0.24544958,62975.0,62974.0,0.07919747]
[1721030571977,0.16368116,62975.0,62974.0,0.07919747]
[1721030572385,0.07880562,62975.0,62974.0,0.07919747]
[1721030572587,0.16368139,62975.0,62974.0,0.07919747]
[1721030572758,0.24545054,62975.0,62974.0,0.07919747]
[1721030573785,0.24545054,62975.0,62974.0,0.08997957]
[1721030575665,0.1913757,62975.0,62974.0,0.08997957]
[1721030575855,0.24550896,62975.0,62974.0,0.08997957]
[1721030578631,0.24550896,62975.0,62974.0,0.07919747]
[1721030579095,0.24534972,62975.0,62974.0,0.07919747]
[1721030579299,0.24534972,62975.0,62974.0,0.006913]
[1721030579519,1.32147414,62975.0,62974.0,0.006913]
[1721030579727,1.19593649,62975.0,62974.0,0.006913]
[1721030579925,0.79126263,62975.0,62974.0,0.006913]
[1721030580338,1.17708963,62975.0,62974.0,0.006913]
[1721030580540,1.17708963,62975.0,62974.0,0.003913]
[1721030581283,0.74834963,62975.0,62974.0,0.003913]
[1721030581483,0.77042948,62975.0,62974.0,0.003913]
[1721030582300,0.77142948,62975.0,62974.0,0.001913]
[1721030582708,0.77842948,62975.0,62974.0,0.001913]
[1721030582923,0.77942948,62975.0,62974.0,0.002913]
[1721030583131,0.77142948,62975.0,62974.0,0.001913]
[1721030583341,0.77942948,62975.0,62974.0,0.002913]
[1721030583553,0.77942948,62975.0,62974.0,0.001913]
[1721030583745,0.92134248,62975.0,62974.0,0.000913]
[1721030584000,1.51516948,62975.0,62974.0,0.00100005]
[1721030584193,2.10982348,62975.0,62974.0,0.00100005]
[1721030584364,2.10982348,62975.0,62974.0,0.00200005]
[1721030584575,2.2705108,62975.0,62974.0,0.00200005]
[1721030584892,2.1103061,62975.0,62974.0,0.00200005]
[1721030585097,1.6244791,62975.0,62974.0,0.00200005]
[1721030585238,1.65882683,62975.0,62974.0,0.00200005]
[1721030585446,1.5084791,62975.0,62974.0,0.00100005]
[1721030585696,1.6224791,62975.0,62974.0,0.00200005]
[1721030585901,1.76482683,62975.0,62974.0,0.00200005]
[1721030586304,1.76482683,62975.0,62974.0,0.00100005]
[1721030586305,1.67362683,62975.0,62974.0,0.00100005]
[1721030586522,1.65962683,62975.0,62974.0,5e-08]
[1721030586724,1.66762683,62975.0,62974.0,0.00100005]
[1721030586945,1.68162683,62975.0,62974.0,0.00200005]
[1721030587138,1.5312791,62975.0,62974.0,0.00100005]
[1721030587561,1.5452791,62975.0,62974.0,0.00200005]
[1721030587771,1.54390878,62975.0,62974.0,0.00200005]
[1721030587934,1.52990878,62975.0,62974.0,0.00100005]
[1721030588350,1.54390878,62975.0,62974.0,0.00200005]
[1721030588510,2.17196991,62975.0,62974.0,0.00200005]
[1721030588718,2.02973578,62975.0,62974.0,0.00200005]
[1721030588918,1.74390878,62975.0,62974.0,0.00200005]
[1721030589529,2.02973578,62975.0,62974.0,0.00200005]
[1721030590938,2.02943431,62975.0,62974.0,0.00200005]
[1721030591410,2.02941519,62975.0,62974.0,0.00200005]
[1721030592169,2.17153224,62975.0,62974.0,0.00200005]
[1721030592881,1.97153224,62975.0,62974.0,0.00200005]
[1721030593218,1.82941519,62975.0,62974.0,0.00200005]
[1721030593886,1.13476119,62975.0,62974.0,0.00200005]
[1721030594013,0.81811,62975.0,62974.0,0.00200005]
[1721030594220,1.13471804,62975.0,62974.0,0.00200005]
[1721030594517,1.22943616,62975.0,62974.0,0.00200005]
[1721030595154,0.60732365,62975.0,62974.0,0.00200005]
[1721030595563,0.59300936,62975.0,62974.0,0.00200005]
[1721030596778,0.71559403,62975.0,62974.0,0.00200005]
[1721030597084,0.64453174,62975.0,62974.0,0.00200005]
[1721030597279,0.64483952,62975.0,62974.0,0.00200005]
[1721030597479,0.73961325,62975.0,62974.0,0.00200005]
[1721030597681,1.33767952,62975.0,62974.0,0.00200005]
[1721030598058,1.10682731,62975.0,62974.0,0.00200005]
[1721030598251,0.85186441,62975.0,62974.0,0.00200005]
[1721030598859,0.71594283,62975.0,62974.0,0.00200005]
[1721030599464,0.71594383,62975.0,62974.0,0.00200005]
[1721030599711,0.85885683,62975.0,62974.0,0.00200005]
[1721030599924,0.63796821,62975.0,62974.0,0.00200005]
[1721030600594,0.63795012,62975.0,62974.0,0.00200005]
[1721030600783,0.85816313,62975.0,62974.0,0.00200005]
[1721030601025,1.16768802,62975.0,62974.0,0.00200005]
[1721030601628,1.07289644,62975.0,62974.0,0.00200005]
[1721030602066,0.85816375,62975.0,62974.0,0.00200005]
[1721030602267,0.63795075,62975.0,62974.0,0.00200005]
[1721030602469,0.56685644,62975.0,62974.0,0.00200005]
[1721030602668,0.46794886,62975.0,62974.0,0.00200005]
[1721030602869,0.51534845,62975.0,62974.0,0.00200005]
[1721030603330,0.61401523,62975.0,62974.0,0.00200005]
[1721030603540,0.51534773,62975.0,62974.0,0.00200005]
[1721030603811,0.37271706,62975.0,62974.0,0.00200005]
[1721030603944,0.51485633,62975.0,62974.0,0.00200005]
[1721030604155,0.69413701,62975.0,62974.0,0.00200005]
[1721030604371,0.92765028,62975.0,62974.0,0.00200005]
[1721030604930,1.12765028,62975.0,62974.0,0.00200005]
[1721030605137,1.21347728,62975.0,62974.0,0.00200005]
[1721030605506,1.41347728,62975.0,62974.0,0.00200005]
[1721030605863,1.43717381,62975.0,62974.0,0.00200005]
[1721030606327,1.34238771,62975.0,62974.0,0.00200005]
[1721030606531,1.43717232,62975.0,62974.0,0.00200005]
[1721030606691,1.14238771,62975.0,62974.0,1.1e-07]
[1721030606986,1.23766292,62975.0,62974.0,1.1e-07]
[1721030607315,1.14287812,62975.0,62974.0,1.1e-07]
[1721030607698,1.23766648,62975.0,62974.0,1.1e-07]
[1721030607900,1.14287812,62975.0,62974.0,1.1e-07]
[1721030608333,1.23766648,62975.0,62974.0,1.1e-07]
[1721030608736,1.21397326,62975.0,62974.0,1.1e-07]
[1721030609143,1.17106648,62975.0,62974.0,1.1e-07]
[1721030610338,1.17106744,62975.0,62974.0,1.1e-07]
[1721030611155,1.52189444,62975.0,62974.0,1.1e-07]
[1721030611283,1.72189444,62975.0,62974.0,1.1e-07]
[1721030612396,1.52189444,62975.0,62974.0,1.1e-07]
[1721030612710,1.42710608,62975.0,62974.0,1.1e-07]
[1721030613068,1.52189444,62975.0,62974.0,1.1e-07]
[1721030613435,1.72182173,62975.0,62974.0,1.1e-07]
[1721030613615,1.52127596,62975.0,62974.0,1.1e-07]
[1721030613825,1.72127596,62975.0,62974.0,1.1e-07]
[1721030614279,1.62647214,62975.0,62974.0,1.1e-07]
[1721030614659,2.01229914,62975.0,62974.0,1.1e-07]
[1721030614862,2.03529914,62975.0,62974.0,1.1e-07]
[1721030615311,2.46333188,62975.0,62974.0,1.1e-07]
[1721030615452,2.32112614,62975.0,62974.0,1.1e-07]
[1721030615945,2.32096714,62975.0,62974.0,1.1e-07]
[1721030616577,2.12787906,62975.0,62974.0,1.1e-07]
[1721030616777,2.32058695,62975.0,62974.0,1.1e-07]
[1721030617231,2.3205842,62975.0,62974.0,1.1e-07]
[1721030619948,2.32072197,62975.0,62974.0,1.1e-07]
[1721030621813,0.142945,62961.0,62960.0,0.00019119]
[1721030622042,0.83835347,62961.0,62960.0,0.00019119]
[1721030622296,0.86556597,62961.0,62960.0,0.00019119]
[1721030622535,0.93667838,62961.0,62960.0,0.00019119]
[1721030622780,0.65078738,62961.0,62960.0,0.00019119]
[1721030623243,0.64987521,62961.0,62960.0,0.00019119]
[1721030623679,0.65287521,62961.0,62960.0,0.00019119]
[1721030624188,0.58174929,62961.0,62959.0,0.0616]
[1721030624404,0.40906598,62960.0,62959.0,0.0616]
[1721030626497,0.41049523,62960.0,62959.0,0.0616]
[1721030626976,0.41050417,62960.0,62959.0,0.0616]
[1721030629540,0.3073352,62960.0,62959.0,0.0616]
[1721030629717,0.3073352,62960.0,62959.0,0.21468447]
[1721030629718,0.29609482,62960.0,62959.0,0.21468447]
[1721030629919,0.2249322,62960.0,62959.0,0.21468447]
[1721030630178,0.17748872,62960.0,62959.0,0.21468447]
[1721030632895,0.08176915,62960.0,62959.0,0.21468447]
[1721030633055,0.17737005,62960.0,62959.0,0.21468447]
[1721030635154,0.17737005,62960.0,62959.0,0.1424]
[1721030635689,0.33948796,62960.0,62956.0,0.0611]
[1721030635877,0.3869319,62959.0,62952.0,0.0611]
[1721030636108,0.19376116,62958.0,62952.0,0.0611]
[1721030636318,0.0474473,62955.0,62952.0,0.0611]
[1721030636516,0.28912594,62958.0,62952.0,0.0611]
[1721030636517,0.38696476,62954.0,62952.0,0.0611]
[1721030636786,0.17739955,62953.0,62952.0,0.0611]
[1721030637017,0.0956304,62953.0,62952.0,0.0621]
[1721030637395,0.0956304,62953.0,62952.0,0.0611]
[1721030637823,0.0956304,62953.0,62952.0,0.0671]
[1721030638055,0.0956304,62953.0,62952.0,0.0681]
[1721030638772,0.0956304,62953.0,62952.0,0.14038447]
[1721030639263,0.0956304,62953.0,62952.0,0.14938447]